[Event "GER-ch Youth U10w 2019"]
[Site "Willingen"]
[Date "2019.06.12"]
[Round "6.4"]
[White "Proettel, Ela"]
[Black "Moldovan, Tatiana"]
[Result "0-1"]
[ECO "E10"]
[WhiteElo "1333"]
[BlackElo "1269"]
[Annotator "NA"]
[PlyCount "99"]
[EventDate "2019.06.07"]
[EventType "swiss"]
[EventRounds "11"]
[EventCountry "GER"]
[SourceTitle "playchess.com"]
[Source "ChessBase"]
[SourceQuality "1"]
[TimeControl "40/4500+30:900+30"]

1. d4 {[%emt 0:00:00]} Nf6 {[%emt 0:00:00]} 2. c4 {[%emt 0:00:00]} e6 {[%emt 0:00:00]} 3. Nf3 {[%emt 0:00:25]} c5 {[%emt 0:00:20]} 4. d5 {[%emt 0:03:28]} exd5 {[%emt 0:00:17]} 5. cxd5 {[%emt 0:00:17]} b6 {[%emt 0:00:20]} 6. Nc3 {[%emt 0:01:02]} Bb7 {[%emt 0:00:13]} 7. e4 {[%emt 0:00:23]} d6 {[%emt 0:00:33]} 8. Bb5+ {[%emt 0:01:32]} Nbd7 {[%emt 0:00:20]} 9. Bxd7+ Qxd7 {[%emt 0:00:32]} 10. Qd3 {[%emt 0:11:50]} Be7 {[%emt 0:05:34]} 11. O-O {[%emt 0:01:09]} O-O {[%emt 0:00:08]} 12. Bg5 {[%emt 0:00:44]} Ne8 {[%emt 0:01:32]} 13. Bxe7 {[%emt 0:01:19]} Qxe7 {[%emt 0:00:18]} 14. Rfe1 {[%emt 0:01:58]} f6 {[%emt 0:00:56]} 15. Rac1 {[%emt 0:02:20]} Rc8 {[%emt 0:01:08]} 16. a4 {[%emt 0:03:28]} Nc7 {[%emt 0:08:35]} 17. Qc4 {[%emt 0:04:45]} Kh8 {[%emt 0:01:24]} 18. Qb3 {[%emt 0:01:01]} Rb8 {[%emt 0:03:31]} 19. Nh4 {[%emt 0:06:17]} Qf7 {[%emt 0:03:17]} 20. Nf5 {[%emt 0:01:15]} Rfd8 {[%emt 0:04:52]} 21. f4 {[%emt 0:09:12]} Qe8 {[%emt 0:06:07]} 22. Rcd1 {[%emt 0:07:22]} Bc8 {[%emt 0:01:36]} 23. Nb5 {[%emt 0:07:12]} Nxb5 {[%emt 0:00:37]} 24. axb5 {[%emt 0:01:44]} Bxf5 {[%emt 0:00:59]} 25. exf5 {[%emt 0:00:24]} Qd7 {[%emt 0:00:27]} 26. Re6 {[%emt 0:01:34]} Re8 {[%emt 0:00:24]} 27. Rde1 {[%emt 0:01:27]} Red8 {[%emt 0:03:26]} 28. Re7 {[%emt 0:01:27]} Qxf5 {[%emt 0:00:11]} 29. Qe3 {[%emt 0:04:14]} Qxd5 {[%emt 0:00:18]} 30. Re8+ {[%emt 0:03:20]} Rxe8 {[%emt 0:00:11]} 31. Qxe8+ {[%emt 0:00:56]} Rxe8 {[%emt 0:00:11]} 32. Rxe8+ {[%emt 0:00:08]} Qg8 {[%emt 0:00:07]} 33. Rxg8+ {[%emt 0:00:11]} Kxg8 {[%emt 0:00:05]} 34. Kf2 {[%emt 0:00:12]} Kf7 {[%emt 0:00:06]} 35. f5 {[%emt 0:00:23]} g6 {[%emt 0:00:09]} 36. g4 {[%emt 0:00:10]} gxf5 {[%emt 0:00:32]} 37. gxf5 {[%emt 0:00:06]} Ke7 {[%emt 0:00:15]} 38. Kg3 {[%emt 0:00:33]} Kf7 {[%emt 0:00:13]} 39. h4 {[%emt 0:01:16]} h5 {[%emt 0:00:14]} 40. Kf4 {[%emt 0:00:25]} d5 {[%emt 0:00:30]} 41. Ke3 {[%emt 0:15:48]} Ke7 {[%emt 0:15:12]} 42. b3 {[%emt 0:01:11]} Kd6 {[%emt 0:00:17]} 43. Kf4 {[%emt 0:00:45]} c4 {[%emt 0:00:17]} 44. b4 {[%emt 0:02:13]} c3 {[%emt 0:00:36]} 45. Ke3 {[%emt 0:00:33]} d4+ {[%emt 0:00:17]} 46. Kd3 {[%emt 0:00:27]} Kd5 {[%emt 0:00:29]} 47. Kc2 {[%emt 0:00:36]} Kc4 {[%emt 0:00:34]} 48. Kc1 {[%emt 0:01:01]} Kb3 {[%emt 0:00:25]} 49. Kb1 {[%emt 0:01:01]} d3 {[%emt 0:00:24]} 50. Kc1 {[%emt 0:00:41] normal} 0-1

[Event "GER-ch Youth U10w 2019"]
[Site "Willingen"]
[Date "2019.06.12"]
[Round "6.5"]
[White "Czaeczine, Paula"]
[Black "Lichtenegger, Katharina"]
[Result "0-1"]
[ECO "C45"]
[WhiteElo "1170"]
[BlackElo "1238"]
[Annotator "NA"]
[PlyCount "61"]
[EventDate "2019.06.07"]
[EventType "swiss"]
[EventRounds "11"]
[EventCountry "GER"]
[SourceTitle "playchess.com"]
[Source "ChessBase"]
[SourceQuality "1"]
[TimeControl "40/4500+30:900+30"]

1. e4 {[%emt 0:00:00]} e5 {[%emt 0:00:00]} 2. Nf3 {[%emt 0:00:00]} Nc6 {[%emt 0:00:00]} 3. d4 {[%emt 0:00:00]} exd4 {[%emt 0:00:00]} 4. Nxd4 {[%emt 0:00:00]} Nf6 {[%emt 0:00:04]} 5. Nxc6 {[%emt 0:00:06]} bxc6 {[%emt 0:00:16]} 6. e5 {[%emt 0:00:13]} Qe7 {[%emt 0:00:20]} 7. Qe2 {[%emt 0:00:11]} Nd5 {[%emt 0:00:16]} 8. c4 {[%emt 0:00:12]} Ba6 {[%emt 0:00:22]} 9. b3 {[%emt 0:00:10]} g6 {[%emt 0:00:30]} 10. f4 {[%emt 0:00:22]} Bg7 {[%emt 0:00:54]} 11. Qf2 {[%emt 0:01:06]} Nb6 {[%emt 0:04:51]} 12. Be2 {[%emt 0:02:39]} d6 {[%emt 0:01:59]} 13. c5 {[%emt 0:02:49]} Bxe2 {[%emt 0:01:12]} 14. cxb6 {[%emt 0:01:52]} Ba6 {[%emt 0:01:31]} 15. Qf3 {[%emt 0:04:05]} Bb7 {[%emt 0:02:16]} 16. O-O {[%emt 0:01:37]} O-O {[%emt 0:02:16]} 17. Bb2 dxe5 {[%emt 0:02:14]} 18. fxe5 {[%emt 0:04:08]} Bxe5 {[%emt 0:01:57]} 19. Ba3 {[%emt 0:01:09]} Qh4 {[%emt 0:05:42]} 20. h3 {[%emt 0:01:50]} Bxa1 {[%emt 0:03:11]} 21. Bxf8 {[%emt 0:00:52]} Rxf8 {[%emt 0:00:54]} 22. bxc7 {[%emt 0:01:44]} Qe7 {[%emt 0:01:19]} 23. Nd2 {[%emt 0:00:52]} Bd4+ {[%emt 0:02:19]} 24. Kh1 {[%emt 0:01:00]} Qxc7 {[%emt 0:01:18]} 25. Ne4 {[%emt 0:00:43]} c5 {[%emt 0:02:40]} 26. Qd3 {[%emt 0:00:48]} Qc6 {[%emt 0:01:45]} 27. Re1 {[%emt 0:02:09]} f5 {[%emt 0:02:13]} 28. Qc4+ {[%emt 0:00:26]} Kg7 {[%emt 0:06:14]} 29. Qe2 {[%emt 0:00:54]} fxe4 {[%emt 0:00:58] normal} 30. Qg4 {[%emt 0:01:46] normal} Qf6 {[%emt 0:03:24]} 31. Qd7+ {[%emt 0:00:21] normal} 0-1

[Event "GER-ch Youth U10w 2019"]
[Site "Willingen"]
[Date "2019.06.12"]
[Round "6.6"]
[White "Bako, Isabella"]
[Black "Haug, Mara"]
[Result "0-1"]
[ECO "C44"]
[WhiteElo "1215"]
[BlackElo "1097"]
[Annotator "NA"]
[PlyCount "87"]
[EventDate "2019.06.07"]
[EventType "swiss"]
[EventRounds "11"]
[EventCountry "GER"]
[SourceTitle "playchess.com"]
[Source "ChessBase"]
[SourceQuality "1"]
[TimeControl "40/4500+30:900+30"]

1. e4 {[%emt 0:00:00]} e5 {[%emt 0:00:00]} 2. Nf3 {[%emt 0:00:15]} Nc6 {[%emt 0:00:12]} 3. d4 {[%emt 0:00:15]} exd4 {[%emt 0:00:57]} 4. c3 {[%emt 0:00:09]} dxc3 {[%emt 0:08:05]} 5. Bc4 {[%emt 0:00:44]} Qf6 {[%emt 0:09:13]} 6. Nxc3 {[%emt 0:04:17]} Bc5 {[%emt 0:03:19]} 7. Bg5 {[%emt 0:13:12]} Qd6 {[%emt 0:08:13]} 8. O-O {[%emt 0:03:28]} Nf6 {[%emt 0:03:46]} 9. e5 {[%emt 0:07:20]} Nxe5 {[%emt 0:02:51]} 10. Re1 {[%emt 0:01:49]} Nfg4 {[%emt 0:05:45]} 11. Ne4 {[%emt 0:06:31]} Nxf3+ {[%emt 0:04:37]} 12. Kf1 {[%emt 0:15:08]} Ngxh2+ {[%emt 0:03:13]} 13. Ke2 {[%emt 0:02:39]} Nd4+ {[%emt 0:01:43]} 14. Kd3 {[%emt 0:06:25]} Qg6 {[%emt 0:04:27]} 15. Kc3 {[%emt 0:03:41]} O-O {[%emt 0:01:39]} 16. Nxc5 {[%emt 0:02:18]} Qxg5 {[%emt 0:02:52]} 17. Qxd4 {[%emt 0:02:48]} d6 {[%emt 0:01:19]} 18. Ne4 {[%emt 0:01:06]} Qa5+ {[%emt 0:03:22]} 19. Kc2 {[%emt 0:01:33]} Qa4+ {[%emt 0:01:38]} 20. Kd3 {[%emt 0:02:27]} Bf5 {[%emt 0:01:30]} 21. Re3 {[%emt 0:00:58]} b5 {[%emt 0:02:16]} 22. Bxf7+ {[%emt 0:02:56]} Rxf7 {[%emt 0:00:30]} 23. Qxa4 {[%emt 0:00:10]} bxa4 {[%emt 0:00:04]} 24. Rh1 {[%emt 0:00:35]} Ng4 {[%emt 0:00:35]} 25. Rf3 {[%emt 0:00:42]} Bxe4+ {[%emt 0:00:12]} 26. Kxe4 {[%emt 0:00:11]} Rxf3 {[%emt 0:00:20]} 27. Kxf3 {[%emt 0:00:12]} Ne5+ {[%emt 0:00:16]} 28. Ke4 {[%emt 0:00:10]} Rb8 {[%emt 0:00:08]} 29. Rc1 {[%emt 0:00:20]} c6 {[%emt 0:01:36]} 30. f4 {[%emt 0:00:13]} Rb4+ {[%emt 0:01:38]} 31. Kf5 {[%emt 0:00:23]} g6+ {[%emt 0:01:01]} 32. Kf6 {[%emt 0:00:07]} Rxf4+ {[%emt 0:00:57]} 33. Ke6 {[%emt 0:00:18]} Rd4 {[%emt 0:01:09]} 34. Rf1 {[%emt 0:00:37]} Rd2 {[%emt 0:00:54]} 35. Rf4 {[%emt 0:01:23]} a3 {[%emt 0:01:34]} 36. bxa3 {[%emt 0:00:25]} Rxa2 {[%emt 0:00:11]} 37. Ra4 {[%emt 0:00:18]} c5 {[%emt 0:01:00]} 38. Kxd6 {[%emt 0:00:12]} Nd3 {[%emt 0:00:10]} 39. Rxa7 {[%emt 0:00:44]} c4 {[%emt 0:01:44]} 40. Rc7 {[%emt 0:01:07]} Rxa3 {[%emt 0:00:42]} 41. Rxc4 {[%emt 0:15:18]} Ra2 {[%emt 0:17:57]} 42. g4 {[%emt 0:00:38]} Rg2 {[%emt 0:00:41] normal} 43. Ke6 {[%emt 0:00:32]} Kg7 {[%emt 0:00:52]} 44. Rd4 {[%emt 0:00:40] normal} 0-1

[Event "GER-ch Youth U10w 2019"]
[Site "Willingen"]
[Date "2019.06.12"]
[Round "7.1"]
[White "Haug, Mara"]
[Black "Mirnaya, Veronika"]
[Result "0-1"]
[ECO "A22"]
[WhiteElo "1097"]
[BlackElo "1237"]
[Annotator "NA"]
[PlyCount "113"]
[EventDate "2019.06.07"]
[EventType "swiss"]
[EventRounds "11"]
[EventCountry "GER"]
[SourceTitle "playchess.com"]
[Source "ChessBase"]
[SourceQuality "1"]
[TimeControl "40/4500+30:900+30"]

1. c4 {[%emt 0:00:00]} e5 {[%emt 0:00:00]} 2. Nc3 {[%emt 0:00:00]} Nf6 {[%emt 0:00:50]} 3. g3 {[%emt 0:00:00]} Bc5 {[%emt 0:02:02]} 4. Bg2 {[%emt 0:00:45]} O-O {[%emt 0:01:51]} 5. Nf3 {[%emt 0:01:12]} Re8 {[%emt 0:04:23]} 6. d3 {[%emt 0:04:05]} h6 {[%emt 0:00:34]} 7. O-O {[%emt 0:04:21]} c6 {[%emt 0:00:15]} 8. e3 {[%emt 0:04:52]} d5 {[%emt 0:02:08]} 9. cxd5 {[%emt 0:01:54]} cxd5 {[%emt 0:00:09]} 10. e4 {[%emt 0:02:56]} d4 {[%emt 0:03:15]} 11. Na4 {[%emt 0:05:41]} Nbd7 {[%emt 0:00:58]} 12. Bd2 {[%emt 0:05:09]} Bf8 {[%emt 0:00:54]} 13. b3 {[%emt 0:05:22]} b5 {[%emt 0:06:09]} 14. Nb2 {[%emt 0:01:33]} Ba3 {[%emt 0:01:09]} 15. Qc2 {[%emt 0:01:20]} Bb7 {[%emt 0:03:21]} 16. b4 {[%emt 0:03:34]} Rc8 {[%emt 0:03:26]} 17. Qb3 {[%emt 0:01:56]} Bxb2 {[%emt 0:00:22]} 18. Qxb2 {[%emt 0:00:10]} Nb6 {[%emt 0:01:47]} 19. Rac1 {[%emt 0:04:03]} Qd6 {[%emt 0:07:30]} 20. Rxc8 {[%emt 0:03:36]} Rxc8 {[%emt 0:00:53]} 21. Rc1 {[%emt 0:02:44]} Bc6 {[%emt 0:03:48]} 22. Qa3 {[%emt 0:04:04]} Na4 {[%emt 0:01:31]} 23. Qb3 {[%emt 0:02:54]} Nd7 {[%emt 0:05:12]} 24. Bh3 {[%emt 0:02:49]} Bb7 {[%emt 0:06:07]} 25. Rxc8+ {[%emt 0:01:23]} Bxc8 {[%emt 0:00:13]} 26. Qc2 {[%emt 0:01:48]} Nab6 {[%emt 0:03:56]} 27. Be1 {[%emt 0:02:20]} f6 {[%emt 0:03:23]} 28. Qb3+ {[%emt 0:01:18]} Kh8 {[%emt 0:00:17]} 29. Qf7 {[%emt 0:02:43]} Qf8 {[%emt 0:08:09]} 30. Qxf8+ {[%emt 0:00:15]} Nxf8 {[%emt 0:00:07]} 31. Bxc8 {[%emt 0:00:06]} Nxc8 {[%emt 0:00:09]} 32. Kf1 {[%emt 0:00:59]} Kg8 {[%emt 0:01:35]} 33. h4 {[%emt 0:01:01]} Kf7 {[%emt 0:00:49]} 34. g4 {[%emt 0:00:41]} Ke7 {[%emt 0:02:15]} 35. Bd2 {[%emt 0:00:50]} Kd7 {[%emt 0:00:54]} 36. g5 {[%emt 0:01:01]} fxg5 {[%emt 0:09:14]} 37. hxg5 {[%emt 0:00:05]} hxg5 {[%emt 0:00:23]} 38. Bxg5 {[%emt 0:01:00]} Ke6 {[%emt 0:02:19]} 39. Kg2 {[%emt 0:01:49]} Ng6 {[%emt 0:01:01]} 40. Kg3 {[%emt 0:01:31]} Nce7 {[%emt 0:00:54]} 41. Bxe7 {[%emt 0:18:19]} Kxe7 {[%emt 0:15:05]} 42. Ng5 {[%emt 0:00:52]} Nf4 {[%emt 0:00:51]} 43. Nf3 {[%emt 0:02:05]} Nxd3 {[%emt 0:00:25]} 44. Kg2 {[%emt 0:00:50]} Nf4+ {[%emt 0:00:35]} 45. Kf1 {[%emt 0:00:40]} Kf6 46. Kg1 {[%emt 0:00:00]} Ne2+ {[%emt 0:00:00]} 47. Kg2 {[%emt 0:00:00]} Nc3 {[%emt 0:00:00]} 48. Nd2 {[%emt 0:00:00]} Nxa2 {[%emt 0:00:00]} 49. f3 {[%emt 0:00:00]} Nxb4 {[%emt 0:00:00]} 50. Kf1 {[%emt 0:00:00]} a5 {[%emt 0:00:00]} 51. Ke2 {[%emt 0:00:00]} Kg5 {[%emt 0:00:00]} 52. Kd1 {[%emt 0:00:00]} Kf4 {[%emt 0:00:00]} 53. Kc1 {[%emt 0:00:00]} Nc6 {[%emt 0:00:00]} 54. Kb2 {[%emt 0:00:00]} Ke3 {[%emt 0:00:00]} 55. Kc2 {[%emt 0:00:00]} a4 {[%emt 0:00:00]} 56. Kc1 {[%emt 0:00:00]} a3 {[%emt 0:00:00]} 57. Kc2 {[%emt 0:00:00] normal} 0-1

[Event "GER-ch Youth U10w 2019"]
[Site "Willingen"]
[Date "2019.06.12"]
[Round "7.2"]
[White "Moldovan, Tatiana"]
[Black "Wartenberg, Alissa"]
[Result "0-1"]
[ECO "C77"]
[WhiteElo "1269"]
[BlackElo "1291"]
[Annotator "NA"]
[PlyCount "61"]
[EventDate "2019.06.07"]
[EventType "swiss"]
[EventRounds "11"]
[EventCountry "GER"]
[SourceTitle "playchess.com"]
[Source "ChessBase"]
[SourceQuality "1"]
[TimeControl "40/4500+30:900+30"]

1. e4 e5 {[%emt 0:00:00]} 2. Nf3 {[%emt 0:00:00]} Nc6 {[%emt 0:00:00]} 3. Bb5 {[%emt 0:00:00]} a6 {[%emt 0:00:00]} 4. Ba4 {[%emt 0:00:00]} Nf6 {[%emt 0:00:00]} 5. d4 {[%emt 0:00:00]} exd4 {[%emt 0:00:10]} 6. O-O {[%emt 0:00:00]} Be7 {[%emt 0:00:14]} 7. e5 {[%emt 0:00:06]} Ne4 {[%emt 0:00:29]} 8. Re1 {[%emt 0:00:16]} Nc5 {[%emt 0:00:12]} 9. Bb3 {[%emt 0:00:27]} Nxb3 {[%emt 0:00:47]} 10. axb3 {[%emt 0:00:14]} O-O {[%emt 0:00:32]} 11. Nxd4 {[%emt 0:00:07]} Nxd4 {[%emt 0:01:47]} 12. Qxd4 {[%emt 0:00:16]} Re8 {[%emt 0:00:30]} 13. Bd2 {[%emt 0:00:51]} d6 {[%emt 0:04:40]} 14. Bc3 {[%emt 0:01:20]} f6 {[%emt 0:03:30]} 15. exf6 {[%emt 0:02:24]} Bxf6 {[%emt 0:00:13]} 16. Rxe8+ {[%emt 0:00:27]} Qxe8 {[%emt 0:00:11]} 17. Qd2 {[%emt 0:00:46]} Bxc3 {[%emt 0:00:55]} 18. Nxc3 {[%emt 0:00:13]} Qg6 {[%emt 0:00:26]} 19. Re1 {[%emt 0:00:28]} Bh3 {[%emt 0:01:14]} 20. g3 {[%emt 0:00:04]} c6 {[%emt 0:01:22]} 21. Ne2 {[%emt 0:04:07]} d5 {[%emt 0:06:47]} 22. Nf4 {[%emt 0:00:56]} Qh6 {[%emt 0:00:30]} 23. Qe2 {[%emt 0:01:05]} a5 {[%emt 0:04:57]} 24. Nxh3 {[%emt 0:00:07]} Qxh3 {[%emt 0:00:11]} 25. g4 {[%emt 0:00:14]} h6 {[%emt 0:03:14]} 26. Rd1 {[%emt 0:11:01]} Rf8 {[%emt 0:02:19]} 27. c4 {[%emt 0:01:18]} Qxb3 {[%emt 0:01:47]} 28. cxd5 {[%emt 0:00:21]} cxd5 {[%emt 0:00:46]} 29. Qe6+ {[%emt 0:00:56]} Kh8 {[%emt 0:00:08]} 30. Qxd5 {[%emt 0:00:30]} Qxb2 {[%emt 0:00:26]} 31. Rf1 {[%emt 0:00:48] normal} 0-1

[Event "GER-ch Youth U10w 2019"]
[Site "Willingen"]
[Date "2019.06.12"]
[Round "7.3"]
[White "Lichtenegger, Katharina"]
[Black "Glotz, Diana"]
[Result "0-1"]
[ECO "C54"]
[WhiteElo "1238"]
[BlackElo "1244"]
[Annotator "NA"]
[PlyCount "72"]
[EventDate "2019.06.07"]
[EventType "swiss"]
[EventRounds "11"]
[EventCountry "GER"]
[SourceTitle "playchess.com"]
[Source "ChessBase"]
[SourceQuality "1"]
[TimeControl "40/4500+30:900+30"]

1. e4 {[%emt 0:00:00]} e5 {[%emt 0:00:00]} 2. Nf3 {[%emt 0:00:05]} Nc6 {[%emt 0:00:31]} 3. Bc4 {[%emt 0:01:24]} Bc5 {[%emt 0:00:24]} 4. c3 {[%emt 0:00:41]} Nf6 {[%emt 0:02:09]} 5. d3 {[%emt 0:00:38]} h6 {[%emt 0:01:18]} 6. O-O {[%emt 0:00:38]} O-O {[%emt 0:02:06]} 7. Nbd2 {[%emt 0:01:21]} d6 {[%emt 0:01:34]} 8. a4 {[%emt 0:00:45]} a6 {[%emt 0:00:44]} 9. Re1 {[%emt 0:01:02]} Ng4 {[%emt 0:04:38]} 10. Re2 {[%emt 0:02:49]} Qe7 {[%emt 0:05:27]} 11. h3 {[%emt 0:01:23]} Nf6 {[%emt 0:00:44]} 12. Nf1 {[%emt 0:00:48]} Bd7 {[%emt 0:05:08]} 13. Ng3 {[%emt 0:02:19]} Rfe8 {[%emt 0:04:00]} 14. Be3 {[%emt 0:03:06]} Bxe3 {[%emt 0:03:59]} 15. Rxe3 {[%emt 0:02:21]} Na5 {[%emt 0:06:02]} 16. Bb3 {[%emt 0:01:08]} c5 {[%emt 0:01:25]} 17. Nd2 {[%emt 0:06:01]} Rac8 {[%emt 0:06:47]} 18. Nc4 {[%emt 0:07:05]} Nxc4 {[%emt 0:02:50]} 19. Bxc4 {[%emt 0:01:26]} b5 {[%emt 0:00:30]} 20. Bb3 {[%emt 0:03:50]} c4 {[%emt 0:02:36]} 21. dxc4 {[%emt 0:00:59]} bxc4 {[%emt 0:00:14]} 22. Bc2 {[%emt 0:00:58]} Rb8 {[%emt 0:02:36]} 23. Rb1 {[%emt 0:02:55]} Be6 {[%emt 0:03:38]} 24. Nh5 {[%emt 0:07:27]} Red8 {[%emt 0:06:07]} 25. Qf3 {[%emt 0:13:05]} d5 {[%emt 0:02:54]} 26. Nxf6+ {[%emt 0:03:17]} Qxf6 {[%emt 0:00:51]} 27. Qg3 {[%emt 0:00:53]} d4 {[%emt 0:03:08]} 28. cxd4 {[%emt 0:00:37]} exd4 {[%emt 0:00:20]} 29. Rf3 {[%emt 0:00:22]} Qg5 {[%emt 0:00:43]} 30. Qxg5 {[%emt 0:01:16]} hxg5 {[%emt 0:00:21]} 31. Rg3 {[%emt 0:01:05]} f6 {[%emt 0:01:00]} 32. b4 {[%emt 0:01:12]} d3 {[%emt 0:00:16]} 33. Bd1 {[%emt 0:00:35]} a5 {[%emt 0:00:44]} 34. b5 {[%emt 0:00:22]} Rbc8 {[%emt 0:00:24]} 35. Bg4 {[%emt 0:00:19]} Bxg4 {[%emt 0:00:09]} 36. hxg4 {[%emt 0:00:29]} d2 {[%emt 0:00:17] normal} 0-1

[Event "GER-ch Youth U10w 2019"]
[Site "Willingen"]
[Date "2019.06.12"]
[Round "7.4"]
[White "Oellrich, Emma"]
[Black "Jannicke, Svea"]
[Result "1-0"]
[ECO "B90"]
[WhiteElo "1484"]
[BlackElo "1062"]
[Annotator "NA"]
[PlyCount "66"]
[EventDate "2019.06.07"]
[EventType "swiss"]
[EventRounds "11"]
[EventCountry "GER"]
[SourceTitle "playchess.com"]
[Source "ChessBase"]
[SourceQuality "1"]
[TimeControl "40/4500+30:900+30"]

1. e4 {[%emt 0:00:00]} c5 {[%emt 0:00:00]} 2. Nf3 {[%emt 0:00:00]} d6 {[%emt 0:00:00]} 3. d4 {[%emt 0:00:00]} cxd4 {[%emt 0:00:00]} 4. Nxd4 {[%emt 0:00:00]} Nf6 {[%emt 0:00:00]} 5. Nc3 {[%emt 0:00:00]} a6 {[%emt 0:00:05]} 6. f3 {[%emt 0:00:01]} g6 {[%emt 0:00:12]} 7. Be3 {[%emt 0:00:12]} Bg7 {[%emt 0:00:15]} 8. Qd2 {[%emt 0:00:06]} Nbd7 {[%emt 0:00:23]} 9. O-O-O {[%emt 0:00:38]} O-O {[%emt 0:00:07]} 10. Bc4 {[%emt 0:00:12]} b5 {[%emt 0:00:12]} 11. Bb3 {[%emt 0:00:11]} Bb7 {[%emt 0:00:13]} 12. g4 {[%emt 0:01:16]} Qc7 {[%emt 0:00:32]} 13. h4 {[%emt 0:00:12]} b4 14. Na4 {[%emt 0:02:53]} a5 {[%emt 0:00:56]} 15. h5 {[%emt 0:01:53]} Nc5 {[%emt 0:00:36]} 16. hxg6 {[%emt 0:01:09]} Nxb3+ {[%emt 0:00:25]} 17. axb3 {[%emt 0:00:06]} fxg6 {[%emt 0:03:41]} 18. Ne6 Qc6 19. Nxf8 {[%emt 0:01:46]} Rxf8 {[%emt 0:00:38]} 20. Bh6 {[%emt 0:00:39]} Rc8 {[%emt 0:00:23]} 21. Bxg7 {[%emt 0:00:25]} Kxg7 {[%emt 0:00:11]} 22. Rh2 {[%emt 0:01:06]} Nd7 {[%emt 0:06:08]} 23. Qh6+ {[%emt 0:00:00]} Kf7 {[%emt 0:00:58]} 24. Qxh7+ {[%emt 0:00:00]} Ke8 {[%emt 0:00:09]} 25. Qxg6+ {[%emt 0:00:00]} Kd8 {[%emt 0:00:11]} 26. Rh8+ {[%emt 0:00:00]} Kc7 {[%emt 0:00:08]} 27. Rxc8+ {[%emt 0:00:00]} Bxc8 {[%emt 0:00:13]} 28. Qe6 {[%emt 0:00:00]} Ba6 {[%emt 0:00:46]} 29. Re1 {[%emt 0:00:46]} Bd3 {[%emt 0:00:06]} 30. Nc3 {[%emt 0:01:48]} bxc3 {[%emt 0:00:10]} 31. cxd3 {[%emt 0:00:34]} cxb2+ 32. Kxb2 a4 {[%emt 0:01:43]} 33. Rc1 {[%emt 0:00:51]} Nc5 {normal} 1-0

[Event "GER-ch Youth U10w 2019"]
[Site "Willingen"]
[Date "2019.06.12"]
[Round "7.5"]
[White "Bangiev, Katharina"]
[Black "Sickmann, Lisa"]
[Result "1-0"]
[ECO "A06"]
[WhiteElo "1003"]
[BlackElo "1418"]
[Annotator "NA"]
[PlyCount "68"]
[EventDate "2019.06.07"]
[EventType "swiss"]
[EventRounds "11"]
[EventCountry "GER"]
[SourceTitle "playchess.com"]
[Source "ChessBase"]
[SourceQuality "1"]
[TimeControl "40/4500+30:900+30"]

1. Nf3 {[%emt 0:00:00]} d5 {[%emt 0:00:00]} 2. g3 {[%emt 0:00:00]} Nf6 {[%emt 0:01:13]} 3. Bg2 {[%emt 0:00:18]} c6 {[%emt 0:00:55]} 4. O-O {[%emt 0:00:22]} g6 {[%emt 0:01:07]} 5. d3 {[%emt 0:00:34]} Bg7 {[%emt 0:02:02]} 6. Nc3 {[%emt 0:00:46]} O-O {[%emt 0:01:00]} 7. e4 {[%emt 0:00:46]} dxe4 {[%emt 0:05:49]} 8. dxe4 {[%emt 0:01:17]} Be6 {[%emt 0:02:28]} 9. Be3 {[%emt 0:01:54]} h6 {[%emt 0:03:01]} 10. Qc1 {[%emt 0:01:31]} Kh7 {[%emt 0:00:48]} 11. Rd1 {[%emt 0:01:55]} Nbd7 {[%emt 0:02:52]} 12. Nd4 {[%emt 0:04:50]} Bc4 13. f4 {[%emt 0:05:42]} Ng4 {[%emt 0:05:04]} 14. e5 {[%emt 0:04:25]} Nxe3 {[%emt 0:02:58]} 15. Qxe3 {[%emt 0:00:25]} f5 {[%emt 0:02:59]} 16. b3 {[%emt 0:00:57]} Bg8 {[%emt 0:00:14]} 17. Nf3 {[%emt 0:00:56]} Qb6 {[%emt 0:01:01]} 18. Qxb6 {[%emt 0:03:15]} Nxb6 {[%emt 0:00:38]} 19. Rd3 {[%emt 0:01:29]} Rfd8 {[%emt 0:00:21]} 20. Rad1 {[%emt 0:00:30]} Rxd3 {[%emt 0:03:25]} 21. Rxd3 {[%emt 0:00:25]} Be6 {[%emt 0:02:19]} 22. Nd4 {[%emt 0:00:51]} Bf7 {[%emt 0:00:17]} 23. Na4 {[%emt 0:01:36]} Nxa4 {[%emt 0:04:04]} 24. bxa4 {[%emt 0:00:16]} Bxa2 {[%emt 0:00:17]} 25. Nb3 {[%emt 0:01:03]} Bxb3 {[%emt 0:01:30]} 26. Rxb3 {[%emt 0:00:19]} Rb8 {[%emt 0:00:18]} 27. Bxc6 {[%emt 0:00:30]} b6 {[%emt 0:00:32]} 28. a5 {[%emt 0:00:21]} Kg8 {[%emt 0:00:40]} 29. axb6 {[%emt 0:00:40]} Rxb6 {[%emt 0:00:20]} 30. Bd5+ {[%emt 0:00:40]} Kf8 {[%emt 0:00:23]} 31. Rc3 {[%emt 0:02:17]} Rb8 {[%emt 0:01:56]} 32. Rc7 {[%emt 0:00:58]} Rd8 {[%emt 0:01:15]} 33. c4 {[%emt 0:02:56]} a5 {[%emt 0:01:53]} 34. Ra7 {[%emt 0:00:47]} e6 {[%emt 0:00:33] normal} 1-0

[Event "GER-ch Youth U10w 2019"]
[Site "Willingen"]
[Date "2019.06.12"]
[Round "7.6"]
[White "Trunz, Tamila"]
[Black "Moradi, Yassaman"]
[Result "1-0"]
[ECO "B23"]
[WhiteElo "1273"]
[BlackElo "1174"]
[Annotator "NA"]
[PlyCount "50"]
[EventDate "2019.06.07"]
[EventType "swiss"]
[EventRounds "11"]
[EventCountry "GER"]
[SourceTitle "playchess.com"]
[Source "ChessBase"]
[SourceQuality "1"]
[TimeControl "40/4500+30:900+30"]

1. e4 {[%emt 0:00:00]} c5 {[%emt 0:00:00]} 2. Nc3 {[%emt 0:00:00]} d6 {[%emt 0:00:00]} 3. f4 {[%emt 0:00:00]} e5 {[%emt 0:02:53]} 4. Bb5+ {[%emt 0:01:25]} Bd7 {[%emt 0:00:47]} 5. Bxd7+ {[%emt 0:02:17]} Nxd7 {[%emt 0:00:52]} 6. d3 {[%emt 0:00:32]} Ngf6 {[%emt 0:00:25]} 7. Nf3 {[%emt 0:00:32]} Be7 {[%emt 0:00:59]} 8. O-O {[%emt 0:00:15]} O-O {[%emt 0:00:14]} 9. Qe1 {[%emt 0:00:55]} a6 {[%emt 0:03:57]} 10. Qg3 {[%emt 0:03:28]} b5 {[%emt 0:00:33]} 11. fxe5 {[%emt 0:00:45]} dxe5 {[%emt 0:01:23]} 12. Bh6 {[%emt 0:01:45]} Ne8 {[%emt 0:00:31]} 13. Nd5 {[%emt 0:01:58]} Ndf6 {[%emt 0:03:02]} 14. Nxe7+ {[%emt 0:06:05]} Qxe7 15. Nxe5 {[%emt 0:01:12]} Nh5 {[%emt 0:01:32]} 16. Qg4 {[%emt 0:09:55]} Qxe5 {[%emt 0:00:45]} 17. Rf5 {[%emt 0:03:17]} Nhf6 {[%emt 0:01:50]} 18. Qg5 {[%emt 0:06:02]} Qxb2 {[%emt 0:00:41]} 19. Raf1 {[%emt 0:03:52]} Kh8 {[%emt 0:02:33]} 20. Rxf6 {[%emt 0:01:49]} gxf6 {[%emt 0:01:44]} 21. Qd5 {[%emt 0:15:05]} Nc7 {[%emt 0:01:27]} 22. Qxc5 {[%emt 0:02:51]} Rfc8 {[%emt 0:00:50]} 23. Qe7 {[%emt 0:02:13]} Rg8 {[%emt 0:01:10]} 24. Qxc7 {[%emt 0:01:21]} Rac8 {[%emt 0:00:21]} 25. Qxf7 {[%emt 0:02:03]} Rxc2 {[%emt 0:00:12] normal} 1-0